Cogmind - Beta 15 @@@ ROGUE MODE // 2025.06.01 @ 11:51:14 Player: Minty Result: Destroyed by Y-54 Guardian with Gatling Laser Performance ------------- Evolutions (0) 0 Regions Visited (4) 800 Robots Destroyed (16) 80 Value Destroyed (545) 545 Prototype IDs (2) 40 Alien Tech Used (0) 0 Bonus (0) 0 TOTAL SCORE: 1465 Bonus ------- None Cogmind --------- Core Integrity 0/250 Matter 274/300 Energy 84/100 System Corruption 2% Temperature Cool (78) Movement Treading (160) Location -7/Recycling Parts ------- > --- POWER (1) -------- (None) > --- PROPULSION (2) --- Light Treads Light Treads > --- UTILITY (2) ------ Cooling System (fused) Small Storage Unit > --- WEAPON (2) ------- EM Shotgun Subdweller Machine Gun > --- INVENTORY (8) ---- Light Treads Cooling System Cooling System Cooling System Tractor Beam EM Shotgun Subdweller Beam Cannon Peak State ------------ > --- POWER ------------ Subdweller Power Source > --- PROPULSION ------- Light Treads Light Treads > --- UTILITY ---------- Cooling System Small Storage Unit > --- WEAPON ----------- EM Shotgun EM Shotgun > --- INVENTORY -------- Cooling System Cooling System Cooling System Tractor Beam EM Shotgun Subdweller Beam Cannon [Rating: 12] Favorites ----------- Power Subdweller Power Source Engine Subdweller Power Source Propulsion Light Treads Treads Light Treads Leg Aluminum Leg Utility Small Storage Unit Device Cooling System Storage Small Storage Unit Weapon EM Shotgun Energy Gun EM Shotgun Energy Cannon Subdweller Beam Cannon Ballistic Gun Assault Rifle Build | -11 -10 -10 -10 -7 ------- Run | Yrd Mat Min Sub Rec Slots Evolved . | . . . . . Power . | . . . . . Propulsion . | . . . . . Utility . | . . . . . Weapon . | . . . . . Parts Attached 18 | . 10 . 8 . Power 2 | . 1 . 1 . Engine 2 | . 1 . 1 . Core . | . . . . . Reactor . | . . . . . Propulsion 7 | . 4 . 3 . Treads 3 | . . . 3 . Leg 4 | . 4 . . . Wheel . | . . . . . Hover . | . . . . . Flight . | . . . . . Utility 2 | . 2 . . . Device 2 | . 2 . . . Storage . | . . . . . Processor . | . . . . . Hackware . | . . . . . Protection . | . . . . . Artifact . | . . . . . Weapon 7 | . 3 . 4 . Energy Gun 4 | . 2 . 2 . Energy Cannon 1 | . . . 1 . Ballistic Gun 2 | . 1 . 1 . Ballistic Cannon . | . . . . . Launcher . | . . . . . Special Weapon . | . . . . . Impact Weapon . | . . . . . Slashing Weapon . | . . . . . Piercing Weapon . | . . . . . Special Melee Weapon . | . . . . . Unidentified Prototypes . | . . . . . Corrupted Parts 1 | . . . 1 . System Corruption 2 | . . . 2 . Parts Lost 7 | . 2 . 3 2 Power 2 | . . . 1 1 Propulsion 2 | . 1 . 1 . Utility . | . . . . . Weapon 3 | . 1 . 1 1 Highest Loss Streak 2 | . 1 . 2 2 To Critical Strikes . | . . . . . Average Backups 7 | 6 7 8 6 7 Power . | 1 1 . . . Propulsion 1 | 4 3 2 . 1 Utility 3 | . 1 4 4 4 Weapon 2 | 1 1 2 2 2 Tool/Special . | . . . . . Unused Backups 14 | . 10 . . 4 Power 3 | . 3 . . . Propulsion 4 | . 4 . . . Utility 5 | . 1 . . 4 Weapon 2 | . 2 . . . Tool/Special . | . . . . . Average Slot Usage (%) 97 | . 93 100 98 96 Engine 13 | . 14 14 13 10 Treads 17 | . . . 24 28 Leg 10 | . 27 28 2 . Device 13 | . 10 14 14 14 Storage 14 | . 14 14 14 14 Energy Gun 17 | . 18 28 16 7 Energy Cannon 6 | . . . 9 7 Ballistic Gun 2 | . 7 . 1 14 Peak Build Rating 12 | 6 11 11 12 12 Average Rating 10 | 6 8 11 11 11 On Entrance 9 | 6 6 11 11 12 Naked Turns . | . . . . . Heaviest Build 24 | 11 18 18 24 24 Greatest Support 40 | 20 20 20 40 40 Greatest Overweight (x) 4 | . 1 . 4 . Average Overweight (x) . | . . . . . Largest Inventory Capacity 8 | 8 8 8 8 8 Average Capacity 8 | 8 8 8 8 8 Most Carried 8 | 6 8 8 8 8 Average Carried 7 | 6 7 8 6 7 Final Capacity 8 | 8 8 8 8 8 Final Carried 8 | 6 8 8 8 7 Class Distribution -------------------- 100% | Mutant Dominant Class ---------------- Mutant | -10/Materials Mutant | -10/Mines Mutant | -10/Subcaves Mutant | -7/Recycling Resources | -11 -10 -10 -10 -7 ----------- Run | Yrd Mat Min Sub Rec Matter Collected 503 | 200 152 . 151 . Remotely . | . . . . . Salvage Created 601 | . 480 . 121 . Parts 27 | . 20 . 7 . Haulers Intercepted . | . . . . . Recyclers Shooed 1 | . 1 . . . Parts Field Recycled . | . . . . . Retrieved Matter . | . . . . . Parts Self-Destructed 13 | . . . 13 . Prevented . | . . . . . Kills | -11 -10 -10 -10 -7 ------- Run | Yrd Mat Min Sub Rec Combat Hostiles Destroyed 13 | . 10 . 3 . Guns 12 | . 10 . 2 . Classes Destroyed 5 | . 2 . 3 . Turret 2 | . . . 2 . Watcher 1 | . 1 . . . Swarmer 1 | . . . 1 . Grunt 10 | . 10 . . . Subdweller 2 | . . . 2 . Best Kill Streak 3 | . 3 . 2 . Combat Bots Only 3 | . 3 . 1 . Max Kills in Single Turn 1 | . 1 . 1 . Gunslinging . | . . . . . Exploded . | . . . . . Melee . | . . . . . Uniques/NPCs Destroyed . | . . . . . Combat | -11 -10 -10 -10 -7 -------- Run | Yrd Mat Min Sub Rec Hostile Shots Fired 224 | . 61 . 106 57 Missed 90 | . 18 . 54 18 Hits 134 | . 43 . 52 39 Projectile 134 | . 43 . 52 39 Critical Strikes 1 | . 1 . . . Damage Taken 1393 | . 573 . 529 291 Core 255 | . 97 . 82 76 Absorbed by Shields . | . . . . . Core Remaining (%) 100 | 100 . . . . Volleys Fired 78 | . 40 . 30 8 Largest 2 | . 2 . 2 2 Hottest 110 | . 90 . 110 75 Shots Fired 129 | . 78 . 37 14 Gun 116 | . 78 . 24 14 Cannon 13 | . . . 13 . Launcher . | . . . . . Special . | . . . . . Kinetic 41 | . 24 . 9 8 Thermal 39 | . 26 . 13 . Explosive . | . . . . . Electromagnetic 49 | . 28 . 15 6 Robot Hit Streak 10 | . 5 . 10 7 Robot Miss Streak 5 | . 5 . 2 2 Penetration Max . | . . . . . Secondary Targets 2 | . 2 . . . Max Gunslinging Chain 1 | . 1 . . . Shots Hit Robots 88 | . 52 . 23 13 Core Hits 39 | . 27 . 11 1 Critical Kills . | . . . . . Critical Parts Destroyed . | . . . . . Critical Strikes . | . . . . . Melee Attacks . | . . . . . Impact . | . . . . . Slashing . | . . . . . Piercing . | . . . . . Sneak Attacks . | . . . . . Combat Hostiles . | . . . . . Follow-up Attacks . | . . . . . Damage Inflicted 1349 | . 780 . 337 232 Guns 1287 | . 743 . 312 232 Cannons 25 | . . . 25 . Explosions 35 | . 35 . . . Melee . | . . . . . Ramming 2 | . 2 . . . Kinetic 498 | . 211 . 127 160 Thermal 258 | . 233 . 25 . Explosive . | . . . . . Electromagnetic 591 | . 334 . 185 72 Impact . | . . . . . Slashing . | . . . . . Piercing . | . . . . . Highest Corruption 2 | . . . 2 2 Average Corruption 2 | . . . 2 2 Corruption Purged . | . . . . . Corruption Blocked . | . . . . . Effects 15 | . . . 15 . Message Errors 3 | . . . 3 . Matter Fused 4 | . . . 4 . Heat Flow Errors 3 | . . . 3 . Energy Discharges 2 | . . . 2 . Parts Fused 1 | . . . 1 . Misfires 1 | . . . 1 . Alerts 1 | . . . 1 . Overload Shots . | . . . . . Overflow Damage . | . . . . . Projectiles . | . . . . . Explosions . | . . . . . Melee . | . . . . . Knockbacks . | . . . . . Impact . | . . . . . Kinetic . | . . . . . Secondary . | . . . . . Self-Inflicted Damage . | . . . . . Shots . | . . . . . Rammed 1 | . . . 1 . Targets Rammed 2 | . 1 . 1 . Kicked 1 | . 1 . . . Crushed . | . . . . . Highest Temperature 190 | . 105 . 190 66 Average Temperature 49 | . 47 . 65 43 Received Heat Transfer 675 | . 333 . 246 96 Siege Activations . | . . . . . Martial Activations . | . . . . . Shielding Activations . | . . . . . Robots Disrupted 1 | . 1 . . . Combat Hostiles 1 | . 1 . . . Robots Corrupted 1 | . . . 1 . Combat Hostiles 1 | . . . 1 . Parts Fried 3 | . 1 . 2 . Impact Corruptions . | . . . . . Robots Melted . | . . . . . Combat Hostiles . | . . . . . Parts Melted . | . . . . . Heat Transferred 537 | . 500 . 37 . Parts Sabotaged . | . . . . . Parts Stolen . | . . . . . Parts Stripped . | . . . . . Power Chain Reactions 1 | . 1 . . . Alert | -11 -10 -10 -10 -7 ------- Run | Yrd Mat Min Sub Rec Maximum Alert Level . | . . . . . Low Security (%) 100 | 100 100 100 . 100 Level 1 . | . . . . . Level 2 . | . . . . . Level 3 . | . . . . . Level 4 . | . . . . . Level 5 . | . . . . . High Security . | . . . . . Max Security . | . . . . . Peak Influence 93 | . 93 30 . 24 Initial 30 | . . 30 . 24 Average 35 | . 46 7 . 13 Influence Increases 364 | . 289 . 75 . Destroy 0b10 Robot/C 260 | . 200 . 60 . Destroy 0b10 Robot/NC 5 | . 5 . . . Destroy Leader 42 | . 42 . . . Successful Hack 21 | . 21 . . . Destroy Structure 6 | . 6 . . . Partial Spotted 15 | . 15 . . . Lose Combat Pursuer 15 | . . . 15 . Influence Decreases 364 | . 212 77 24 51 Entered New Map 74 | . . 47 . 27 Time Decay 256 | . 192 30 24 10 Lost Part 34 | . 20 . . 14 Squads Dispatched 3 | . 3 . . . Investigation 2 | . 2 . . . Extermination . | . . . . . Reinforcement 1 | . 1 . . . Assault . | . . . . . Garrison . | . . . . . Intercept . | . . . . . Searches Triggered . | . . . . . Construction Impeded . | . . . . . Haulers Reinforced . | . . . . . Active Scanning Responses . | . . . . . Cargo Convoy Interrupts . | . . . . . Stealth | -11 -10 -10 -10 -7 --------- Run | Yrd Mat Min Sub Rec Distress Signals 1 | . 1 . . . Communications Jammed . | . . . . . Distress Signals . | . . . . . Times Spotted 27 | . 17 . 9 1 Peak Tracking Total 4 | . 4 . 3 1 Tactical Retreats 1 | . . . 1 . Traps | -11 -10 -10 -10 -7 ------- Run | Yrd Mat Min Sub Rec Traps Triggered 1 | . 1 . . . Indirectly . | . . . . . Trap Hack Attempts . | . . . . . Triggered . | . . . . . Disarmed . | . . . . . Reprogrammed . | . . . . . Reused . | . . . . . Traps Extracted . | . . . . . Installed . | . . . . . Triggered . | . . . . . Machines | -11 -10 -10 -10 -7 ---------- Run | Yrd Mat Min Sub Rec Machines Disabled 1 | . . . 1 . Max in Single Turn 1 | . . . 1 . Machines Repaired . | . . . . . Machines Dismantled . | . . . . . Machines Sabotaged . | . . . . . Overloaded Fab Kills . | . . . . . Hacking | -11 -10 -10 -10 -7 --------- Run | Yrd Mat Min Sub Rec Machines Accessed 8 | . 6 . 2 . Terminals 6 | . 6 . . . Fabricators . | . . . . . Repair Stations . | . . . . . Recycling Units . | . . . . . Scanalyzers . | . . . . . Garrison Access . | . . . . . Total Hacks 27 | . 21 . 6 . Successful 13 | . 7 . 6 . Failed 14 | . 14 . . . Catastrophic 3 | . 3 . . . Database Lockouts . | . . . . . Manual 5 | . 5 . . . Terminals 21 | . 21 . . . Fabricators . | . . . . . Repair Stations . | . . . . . Recycling Units . | . . . . . Scanalyzers . | . . . . . Garrison Access . | . . . . . Terminal Hacks 13 | . 7 . 6 . Record 5 | . . . 5 . Prototype ID Bank 1 | . 1 . . . Open Door 1 | . . . 1 . Branch Access Points 1 | . 1 . . . Terminal Index 1 | . 1 . . . Alert Level 3 | . 3 . . . Locate Traps 1 | . 1 . . . Fabricator Hacks . | . . . . . Repair Station Hacks . | . . . . . Recycling Unit Hacks . | . . . . . Scanalyzer . | . . . . . Garrison Access Hacks . | . . . . . Unauthorized Hacks . | . . . . . Terminals . | . . . . . Fabricators . | . . . . . Repair Stations . | . . . . . Recycling Units . | . . . . . Scanalyzers . | . . . . . Garrison Access . | . . . . . Data Cores Recovered . | . . . . . Used . | . . . . . Hacking Detections 6 | . 6 . . . Full Trace Events 2 | . 2 . . . Feedback Events . | . . . . . Feedback Blocked . | . . . . . Robot Schematics Acquired . | . . . . . Robots Built . | . . . . . Authchips . | . . . . . Time . | . . . . . Total Robot Build Rating . | . . . . . Part Schematics Acquired . | . . . . . Parts Built . | . . . . . Authchips . | . . . . . Time . | . . . . . Total Part Build Rating . | . . . . . Parts Repaired . | . . . . . Time . | . . . . . Parts Recycled . | . . . . . Recycled Matter . | . . . . . Retrieved Matter . | . . . . . Retrieved Components . | . . . . . Parts Scanalyzed . | . . . . . Part Schematics Acquired . | . . . . . Parts Damaged . | . . . . . Bothacking | -11 -10 -10 -10 -7 ------------ Run | Yrd Mat Min Sub Rec Used RIF Installer . | . . . . . Robots Hacked . | . . . . . Non-combat . | . . . . . Combat . | . . . . . Robot Hacks Applied . | . . . . . Relay Couplers Released . | . . . . . Fabnet Peak Effective % . | . . . . . Robots Rewired . | . . . . . Allies Hacked . | . . . . . Hacks Repelled . | . . . . . Allies | -11 -10 -10 -10 -7 -------- Run | Yrd Mat Min Sub Rec Total Allies . | . . . . . Largest Group . | . . . . . Highest-Rated Group . | . . . . . Highest-Rated Ally . | . . . . . Total Orders . | . . . . . Ally Attacks . | . . . . . Total Damage . | . . . . . Kills . | . . . . . Allies Corrupted . | . . . . . Allies Melted . | . . . . . Intel | -11 -10 -10 -10 -7 ------- Run | Yrd Mat Min Sub Rec Active Infowar (turns) . | . . . . . Robot Analysis Total . | . . . . . Derelict Logs Recovered . | . . . . . Drone Launches . | . . . . . Drone Recoveries . | . . . . . Exploration | -11 -10 -10 -10 -7 ------------- Run | Yrd Mat Min Sub Rec Turns Passed 2170 | 6 475 166 1498 25 Spaces Moved 1285 | 6 272 139 867 1 Core 3 | . . . 3 . Treads 779 | . . . 778 1 Legs 503 | 6 272 139 86 . Wheels . | . . . . . Hover . | . . . . . Flight . | . . . . . Fastest Speed 120 | 120 120 120 120 160 Average Speed 145 | 120 120 120 156 160 Slowest Speed 250 | 120 190 120 250 160 Overloaded Moves . | . . . . . Propulsion Burnouts . | . . . . . Robots Hopped . | . . . . . Potential Cave-ins . | . . . . . Cave-ins Triggered . | . . . . . Exploration Rate (%) 23 | 2 54 30 29 2 Regions Visited 4 Branch Regions 3 Pre-discovered Areas . | . . . . . Known Exits Taken 1 | . 1 . . . Unknown Exits Taken 3 | 1 . 1 1 . Scrap Searched . | . . . . . Spaces Dug 3 | . . . 3 . Terrain Destroyed 12 | . 6 . 6 . Melee . | . . . . . Projectile 6 | . . . 6 . AOE 6 | . 6 . . . Terrain Rammed . | . . . . . Walls Destroyed . | . . . . . Machines Disabled . | . . . . . Actions | -11 -10 -10 -10 -7 --------- Run | Yrd Mat Min Sub Rec Total 1461 | 5 342 138 965 11 Wait 60 | . 6 . 54 . Move 1281 | 5 271 138 866 1 Hop . | . . . . . Pick Up 8 | . 6 . 2 . Fast Attach 5 | . 2 . 3 . Attach 5 | . 1 . 3 1 Detach 1 | . . . 1 . Swap 12 | . 7 . 4 1 Drop 9 | . 8 . 1 . Fire 78 | . 40 . 30 8 Melee . | . . . . . Ram . | . . . . . Kick 1 | . 1 . . . Crush 1 | . . . 1 . Escape Stasis . | . . . . . Rewire . | . . . . . Trap . | . . . . . Miscellaneous . | . . . . . Route ------- -11/Scrapyard -10/Materials -10/Mines -10/Subcaves (discovered 3 exits: [*Mat x2] / [*Rec]) -7/Recycling History --------- Turn | Location | Event 1 | -11/Scrapyard | Discovered new exit (range 3) 7 | -11/Scrapyard | Entered Materials 255 | -10/Materials | Identified exit to Mines 313 | -10/Materials | Build established: Mutant 482 | -10/Materials | Entered Mines 548 | -10/Mines | Met a Derelict bent on vengeance 612 | -10/Mines | Discovered new exit (range 13) 648 | -10/Mines | Entered Subcaves 649 | -10/Subcaves | Approached by a straggling Scientist 777 | -10/Subcaves | Core integrity fell below 50% 910 | -10/Subcaves | Discovered new exit (range 9) 932 | -10/Subcaves | Shifting Twisted Machinery released Sub. Beam Cannon 1151 | -10/Subcaves | Shifting Twisted Machinery released Sub. Machine Gun 1293 | -10/Subcaves | Discovered new exit (range 16) 1565 | -10/Subcaves | Visited Clippyterm 1570 | -10/Subcaves | Learned Factory trap positions 1570 | -10/Subcaves | Learned Research security intel 2029 | -10/Subcaves | Discovered new exit (range 15) 2093 | -10/Subcaves | Shifting Twisted Machinery released Sub. Machine Gun 2146 | -10/Subcaves | Entered Recycling 2157 | -7/Recycling | Core integrity fell below 20% 2171 | -7/Recycling | Destroyed by Y-54 Guardian with Gatling Laser Last Messages --------------- 35-YHK(c): "I think it's somewhere northwest of here" 02026_ Flight Unit fries itself beyond repair. 02027_ Autobeam Turret destroyed. 02029_ Lgt. Ion Engine fries itself beyond repair. 02029_ EXIT=FOUND 02041_ Acquired 44 matter. 02046_ WZFIJDSC